[Event "Titled Tuesday Blitz January 10 Early 2023"]
[White "Karttunen, Mika"]
[Black "Cepo, Toni"]
[WhiteFideId "502081"]
[BlackFideId "4675916"]
[WhiteElo "2490"]
[BlackElo "2145"]
[Result "1-0"]
[Round "01"]
[TimeControl "180+2"]
[Date "2023.01.10"]
[WhiteClock "0:02:05"]
[BlackClock "0:01:28"]

1. c4 {[%clk 0:03:00]}  Nf6 {[%clk 0:02:51]} 2. g3 {[%clk 0:03:00]}  c5 {[%clk 0:02:48]} 3. Bg2 {[%clk 0:03:00]}  Nc6 {[%clk 0:02:47]} 4. Nf3 {[%clk 0:02:58]}  g6 {[%clk 0:02:46]} 5. Nc3 {[%clk 0:02:58]}  Bg7 {[%clk 0:02:44]} 6. O-O {[%clk 0:02:57]}  O-O {[%clk 0:02:42]} 7. a3 {[%clk 0:02:57]}  d6 {[%clk 0:02:41]} 8. Rb1 {[%clk 0:02:57]}  Rb8 {[%clk 0:02:39]} 9. b4 {[%clk 0:02:55]}  b6 {[%clk 0:02:39]} 10. d3 {[%clk 0:02:46]}  Bb7 {[%clk 0:02:36]} 11. Qa4 {[%clk 0:02:40]}  a5 {[%clk 0:02:31]} 12. bxc5 {[%clk 0:02:29]}  bxc5 {[%clk 0:02:28]} 13. Rxb7 {[%clk 0:02:23]}  Rxb7 {[%clk 0:02:26]} 14. Qxc6 {[%clk 0:02:22]}  Rb6 {[%clk 0:02:22]} 15. Qa4 {[%clk 0:02:21]}  Nd7 {[%clk 0:02:06]} 16. Nb5 {[%clk 0:02:17]}  Nb8 {[%clk 0:02:01]} 17. Qxa5 {[%clk 0:02:09]}  Nc6 {[%clk 0:01:33]} 18. Qa4 {[%clk 0:02:06]}  Nd4 {[%clk 0:01:28]} 19. Nfxd4 {[%clk 0:02:05]}  cxd4 {[%clk 0:01:28]} 1-0


[Site "https://www.chess.com"]

[Event "Titled Tuesday Blitz January 10 Early 2023"]
[White "Hon, Eric"]
[Black "Melian, Juan Sebastian"]
[WhiteFideId "2097117"]
[BlackFideId "3706575"]
[WhiteElo "1897"]
[BlackElo "2293"]
[Result "0-1"]
[Round "01"]
[TimeControl "180+2"]
[Date "2023.01.10"]
[WhiteClock "0:00:38"]
[BlackClock "0:00:15"]

1. e4 {[%clk 0:02:56]}  c5 {[%clk 0:02:55]} 2. Nf3 {[%clk 0:02:55]}  e6 {[%clk 0:02:45]} 3. d4 {[%clk 0:02:52]}  cxd4 {[%clk 0:02:46]} 4. Nxd4 {[%clk 0:02:53]}  a6 {[%clk 0:02:45]} 5. Nc3 {[%clk 0:02:45]}  b5 {[%clk 0:02:45]} 6. a3 {[%clk 0:02:25]}  Bb7 {[%clk 0:02:43]} 7. Be3 {[%clk 0:02:22]}  Nf6 {[%clk 0:02:35]} 8. Bd3 {[%clk 0:02:21]}  Qc7 {[%clk 0:02:33]} 9. O-O {[%clk 0:02:18]}  h5 {[%clk 0:02:24]} 10. h3 {[%clk 0:02:16]}  d6 {[%clk 0:02:17]} 11. f4 {[%clk 0:02:08]}  Nbd7 {[%clk 0:01:58]} 12. Nf3 {[%clk 0:01:56]}  Nc5 {[%clk 0:01:57]} 13. Bxc5 {[%clk 0:01:56]}  dxc5 {[%clk 0:01:52]} 14. e5 {[%clk 0:01:56]}  Nd5 {[%clk 0:01:52]} 15. Nxd5 {[%clk 0:01:56]}  Bxd5 {[%clk 0:01:53]} 16. Qe2 {[%clk 0:01:54]}  Qb7 {[%clk 0:01:36]} 17. c3 {[%clk 0:01:50]}  Rd8 {[%clk 0:01:22]} 18. Rad1 {[%clk 0:01:48]}  Be7 {[%clk 0:01:10]} 19. Bc2 {[%clk 0:01:39]}  O-O {[%clk 0:01:06]} 20. Rd2 {[%clk 0:01:19]}  Bc4 {[%clk 0:01:03]} 21. Qf2 {[%clk 0:01:16]}  Bxf1 {[%clk 0:01:02]} 22. Kxf1 {[%clk 0:01:17]}  Rxd2 {[%clk 0:01:01]} 23. Nxd2 {[%clk 0:01:18]}  Rd8 {[%clk 0:01:00]} 24. Ne4 {[%clk 0:01:18]}  Qd5 {[%clk 0:00:55]} 25. Kg1 {[%clk 0:01:14]}  g6 {[%clk 0:00:46]} 26. Kh2 {[%clk 0:01:13]}  Kf8 {[%clk 0:00:45]} 27. Qe3 {[%clk 0:01:08]}  h4 {[%clk 0:00:40]} 28. a4 {[%clk 0:01:00]}  Kg7 {[%clk 0:00:38]} 29. axb5 {[%clk 0:01:00]}  axb5 {[%clk 0:00:39]} 30. Qf2 {[%clk 0:00:50]}  b4 {[%clk 0:00:37]} 31. cxb4 {[%clk 0:00:48]}  cxb4 {[%clk 0:00:38]} 32. Nf6 {[%clk 0:00:46]}  Bxf6 {[%clk 0:00:36]} 33. exf6+ {[%clk 0:00:47]}  Kxf6 {[%clk 0:00:37]} 34. Qxh4+ {[%clk 0:00:47]}  Kg7 {[%clk 0:00:37]} 35. Be4 {[%clk 0:00:44]}  Qd6 {[%clk 0:00:21]} 36. Bf3 {[%clk 0:00:42]}  Rc8 {[%clk 0:00:17]} 37. Qg5 {[%clk 0:00:38]}  Rc4 {[%clk 0:00:17]} 38. g3 {[%clk 0:00:38]}  Rc2+ {[%clk 0:00:16]} 39. Bg2 {[%clk 0:00:38]}  Rxb2 {[%clk 0:00:15]} 0-1


[Site "https://www.chess.com"]

[Event "Titled Tuesday Blitz January 10 Early 2023"]
[White "Marin Ramirez, Gerardo"]
[Black "Tikhonov, Viacheslav"]
[WhiteFideId "3901068"]
[BlackFideId "44196407"]
[WhiteElo "2127"]
[BlackElo "2220"]
[Result "1-0"]
[Round "01"]
[TimeControl "180+2"]
[Date "2023.01.10"]
[WhiteClock "0:00:59"]
[BlackClock "0:00:01"]

1. d4 {[%clk 0:02:58]}  Nf6 {[%clk 0:02:40]} 2. Nf3 {[%clk 0:02:59]}  g6 {[%clk 0:02:38]} 3. c4 {[%clk 0:03:00]}  Bg7 {[%clk 0:02:36]} 4. Nc3 {[%clk 0:03:01]}  d5 {[%clk 0:02:34]} 5. g3 {[%clk 0:03:02]}  O-O {[%clk 0:02:30]} 6. Bg2 {[%clk 0:03:03]}  c6 {[%clk 0:02:22]} 7. cxd5 {[%clk 0:02:54]}  cxd5 {[%clk 0:02:20]} 8. O-O {[%clk 0:02:53]}  Ne4 {[%clk 0:02:19]} 9. Bd2 {[%clk 0:02:50]}  Nc6 {[%clk 0:02:10]} 10. e3 {[%clk 0:02:47]}  Nxc3 {[%clk 0:02:02]} 11. Bxc3 {[%clk 0:02:46]}  Bf5 {[%clk 0:02:02]} 12. Nd2 {[%clk 0:02:44]}  Rc8 {[%clk 0:01:57]} 13. Qb3 {[%clk 0:02:29]}  Bd3 {[%clk 0:01:30]} 14. Rfc1 {[%clk 0:02:26]}  b5 {[%clk 0:01:28]} 15. Bxd5 {[%clk 0:02:11]}  e6 {[%clk 0:01:06]} 16. Bxc6 {[%clk 0:02:02]}  Rxc6 {[%clk 0:01:06]} 17. Bb4 {[%clk 0:02:02]}  Bc4 {[%clk 0:00:51]} 18. Nxc4 {[%clk 0:02:01]}  bxc4 {[%clk 0:00:52]} 19. Rxc4 {[%clk 0:02:00]}  Rxc4 {[%clk 0:00:49]} 20. Qxc4 {[%clk 0:01:59]}  Re8 {[%clk 0:00:50]} 21. Rc1 {[%clk 0:01:58]}  Qb6 {[%clk 0:00:43]} 22. Qc6 {[%clk 0:01:54]}  Qb8 {[%clk 0:00:43]} 23. Bd6 {[%clk 0:01:52]}  Qd8 {[%clk 0:00:38]} 24. Bc5 {[%clk 0:01:39]}  e5 {[%clk 0:00:21]} 25. Bxa7 {[%clk 0:01:31]}  exd4 {[%clk 0:00:19]} 26. Bb6 {[%clk 0:01:29]}  Qe7 {[%clk 0:00:15]} 27. exd4 {[%clk 0:01:22]}  h5 {[%clk 0:00:12]} 28. a4 {[%clk 0:01:20]}  h4 {[%clk 0:00:12]} 29. a5 {[%clk 0:01:19]}  h3 {[%clk 0:00:09]} 30. Rf1 {[%clk 0:01:18]}  Qe2 {[%clk 0:00:05]} 31. a6 {[%clk 0:01:13]}  Bh6 {[%clk 0:00:03]} 32. a7 {[%clk 0:01:01]}  Kg7 {[%clk 0:00:01]} 33. a8=Q {[%clk 0:00:59]} 1-0


[Site "https://www.chess.com"]

[Event "Titled Tuesday Blitz January 10 Early 2023"]
[White "Torres Dominguez, David"]
[Black "Di Nicolantonio, Lucas"]
[WhiteFideId "2220857"]
[BlackFideId "680460"]
[WhiteElo "1994"]
[BlackElo "2376"]
[Result "0-1"]
[Round "01"]
[TimeControl "180+2"]
[Date "2023.01.10"]
[WhiteClock "0:00:01"]
[BlackClock "0:00:14"]

1. e4 {[%clk 0:02:59]}  g6 {[%clk 0:02:57]} 2. Nc3 {[%clk 0:02:58]}  Bg7 {[%clk 0:02:58]} 3. f4 {[%clk 0:02:58]}  c5 {[%clk 0:02:57]} 4. Nf3 {[%clk 0:02:56]}  Nc6 {[%clk 0:02:57]} 5. a4 {[%clk 0:02:51]}  e6 {[%clk 0:02:54]} 6. d4 {[%clk 0:02:51]}  cxd4 {[%clk 0:02:49]} 7. Nb5 {[%clk 0:02:51]}  d6 {[%clk 0:02:50]} 8. c3 {[%clk 0:02:48]}  a6 {[%clk 0:02:48]} 9. Nbxd4 {[%clk 0:02:47]}  Nge7 {[%clk 0:02:48]} 10. Be2 {[%clk 0:02:39]}  O-O {[%clk 0:02:48]} 11. O-O {[%clk 0:02:31]}  e5 {[%clk 0:02:44]} 12. Nxc6 {[%clk 0:02:25]}  Nxc6 {[%clk 0:02:44]} 13. f5 {[%clk 0:02:17]}  gxf5 {[%clk 0:02:31]} 14. exf5 {[%clk 0:02:17]}  d5 {[%clk 0:01:51]} 15. Ng5 {[%clk 0:02:08]}  Bf6 {[%clk 0:01:47]} 16. Rf3 {[%clk 0:02:02]}  Kh8 {[%clk 0:01:42]} 17. Nxh7 {[%clk 0:01:54]}  Kxh7 {[%clk 0:01:36]} 18. Rh3+ {[%clk 0:01:54]}  Bh4 {[%clk 0:01:31]} 19. Qe1 {[%clk 0:01:44]}  Bxf5 {[%clk 0:01:28]} 20. Rxh4+ {[%clk 0:01:44]}  Kg8 {[%clk 0:01:23]} 21. Qg3+ {[%clk 0:01:36]}  Bg6 {[%clk 0:01:24]} 22. Bh5 {[%clk 0:01:27]}  Qf6 {[%clk 0:01:11]} 23. Bg5 {[%clk 0:01:21]}  Qg7 {[%clk 0:01:11]} 24. Rf1 {[%clk 0:01:13]}  Bxh5 {[%clk 0:01:00]} 25. Rxh5 {[%clk 0:01:13]}  f6 {[%clk 0:01:01]} 26. Qd3 {[%clk 0:00:43]}  fxg5 {[%clk 0:00:58]} 27. Qxd5+ {[%clk 0:00:40]}  Rf7 {[%clk 0:00:58]} 28. Rxf7 {[%clk 0:00:31]}  Qxf7 {[%clk 0:00:58]} 29. Rh8+ {[%clk 0:00:30]}  Kxh8 {[%clk 0:00:57]} 30. Qxf7 {[%clk 0:00:30]}  Rd8 {[%clk 0:00:57]} 31. Qh5+ {[%clk 0:00:30]}  Kg7 {[%clk 0:00:56]} 32. Qxg5+ {[%clk 0:00:30]}  Kf7 {[%clk 0:00:57]} 33. h3 {[%clk 0:00:31]}  Ke6 {[%clk 0:00:56]} 34. Qg6+ {[%clk 0:00:30]}  Kd5 {[%clk 0:00:56]} 35. Qf7+ {[%clk 0:00:30]}  Kc5 {[%clk 0:00:56]} 36. Qxb7 {[%clk 0:00:31]}  Rd1+ {[%clk 0:00:55]} 37. Kh2 {[%clk 0:00:30]}  a5 {[%clk 0:00:56]} 38. Qf7 {[%clk 0:00:26]}  Rd2 {[%clk 0:00:52]} 39. Qf8+ {[%clk 0:00:26]}  Kc4 {[%clk 0:00:52]} 40. Qf7+ {[%clk 0:00:24]}  Kc5 {[%clk 0:00:51]} 41. b4+ {[%clk 0:00:23]}  axb4 {[%clk 0:00:51]} 42. cxb4+ {[%clk 0:00:23]}  Nxb4 {[%clk 0:00:50]} 43. Qc7+ {[%clk 0:00:22]}  Nc6 {[%clk 0:00:50]} 44. a5 {[%clk 0:00:21]}  Ra2 {[%clk 0:00:49]} 45. Qb6+ {[%clk 0:00:21]}  Kd6 {[%clk 0:00:47]} 46. Qb5 {[%clk 0:00:21]}  Rxa5 {[%clk 0:00:47]} 47. Qd3+ {[%clk 0:00:19]}  Rd5 {[%clk 0:00:45]} 48. Qg6+ {[%clk 0:00:19]}  Kc5 {[%clk 0:00:46]} 49. Qf7 {[%clk 0:00:19]}  Rd2 {[%clk 0:00:42]} 50. Qf8+ {[%clk 0:00:19]}  Kb6 {[%clk 0:00:37]} 51. Qg8 {[%clk 0:00:18]}  e4 {[%clk 0:00:33]} 52. Qg5 {[%clk 0:00:18]}  Re2 {[%clk 0:00:28]} 53. Qf5 {[%clk 0:00:18]}  Nd4 {[%clk 0:00:24]} 54. Qf6+ {[%clk 0:00:17]}  Kc5 {[%clk 0:00:24]} 55. Qe7+ {[%clk 0:00:18]}  Kc4 {[%clk 0:00:24]} 56. Qc7+ {[%clk 0:00:17]}  Kd3 {[%clk 0:00:24]} 57. Qh7 {[%clk 0:00:13]}  Nf3+ {[%clk 0:00:22]} 58. Kg3 {[%clk 0:00:11]}  Ne1 {[%clk 0:00:23]} 59. h4 {[%clk 0:00:10]}  Rxg2+ {[%clk 0:00:23]} 60. Kh3 {[%clk 0:00:11]}  Re2 {[%clk 0:00:20]} 61. Qd7+ {[%clk 0:00:11]}  Ke3 {[%clk 0:00:21]} 62. h5 {[%clk 0:00:11]}  Nf3 {[%clk 0:00:21]} 63. h6 {[%clk 0:00:08]}  Rh2+ {[%clk 0:00:21]} 64. Kg4 {[%clk 0:00:09]}  Rxh6 {[%clk 0:00:22]} 65. Qd1 {[%clk 0:00:08]}  Rg6+ {[%clk 0:00:21]} 66. Kh5 {[%clk 0:00:07]}  Rg1 {[%clk 0:00:19]} 67. Qc2 {[%clk 0:00:04]}  Kf4 {[%clk 0:00:16]} 68. Qc7+ {[%clk 0:00:04]}  Ne5 {[%clk 0:00:16]} 69. Qc2 {[%clk 0:00:01]}  Rh1+ {[%clk 0:00:14]} 0-1


[Site "https://www.chess.com"]

[Event "Titled Tuesday Blitz January 10 Early 2023"]
[White "Bilan, Danila"]
[Black "Cardozo Munar, Carlos Eduardo"]
[WhiteFideId "24161918"]
[BlackFideId "4409477"]
[WhiteElo "2303"]
[BlackElo "2043"]
[Result "1-0"]
[Round "01"]
[TimeControl "180+2"]
[Date "2023.01.10"]
[WhiteClock "0:00:26"]
[BlackClock "0:00:35"]

1. d4 {[%clk 0:02:54]}  d5 {[%clk 0:03:00]} 2. Nf3 {[%clk 0:02:55]}  c6 {[%clk 0:02:59]} 3. c4 {[%clk 0:02:55]}  Nf6 {[%clk 0:02:59]} 4. Nc3 {[%clk 0:02:54]}  dxc4 {[%clk 0:02:59]} 5. a4 {[%clk 0:02:54]}  Bf5 {[%clk 0:02:58]} 6. e3 {[%clk 0:02:54]}  e6 {[%clk 0:02:58]} 7. Bxc4 {[%clk 0:02:55]}  h6 {[%clk 0:02:58]} 8. O-O {[%clk 0:02:48]}  Nbd7 {[%clk 0:02:58]} 9. Qe2 {[%clk 0:02:47]}  Ne4 {[%clk 0:02:57]} 10. Bd3 {[%clk 0:02:35]}  Ndf6 {[%clk 0:02:56]} 11. Nd2 {[%clk 0:01:50]}  Nxd2 {[%clk 0:02:40]} 12. Bxd2 {[%clk 0:01:50]}  Bxd3 {[%clk 0:02:40]} 13. Qxd3 {[%clk 0:01:51]}  Be7 {[%clk 0:02:36]} 14. a5 {[%clk 0:01:45]}  a6 {[%clk 0:02:36]} 15. Qc4 {[%clk 0:01:36]}  O-O {[%clk 0:02:35]} 16. Rfc1 {[%clk 0:01:35]}  Rc8 {[%clk 0:02:28]} 17. Na4 {[%clk 0:01:28]}  Ne4 {[%clk 0:02:25]} 18. Bb4 {[%clk 0:01:23]}  Bxb4 {[%clk 0:02:10]} 19. Qxb4 {[%clk 0:01:22]}  Rc7 {[%clk 0:02:02]} 20. Nc5 {[%clk 0:01:17]}  Qh4 {[%clk 0:01:52]} 21. g3 {[%clk 0:01:08]}  Qh3 {[%clk 0:01:49]} 22. Nxe4 {[%clk 0:01:07]}  f5 {[%clk 0:01:26]} 23. Nc5 {[%clk 0:01:02]}  Rf6 {[%clk 0:01:26]} 24. Qc4 {[%clk 0:00:53]}  Re7 {[%clk 0:01:17]} 25. Nd3 {[%clk 0:00:45]}  g5 {[%clk 0:01:14]} 26. Ne5 {[%clk 0:00:33]}  h5 {[%clk 0:01:08]} 27. Qf1 {[%clk 0:00:32]}  Qxf1+ {[%clk 0:01:02]} 28. Kxf1 {[%clk 0:00:33]}  h4 {[%clk 0:01:00]} 29. Ke2 {[%clk 0:00:31]}  f4 {[%clk 0:00:54]} 30. gxf4 {[%clk 0:00:26]}  gxf4 {[%clk 0:00:55]} 31. Rg1+ {[%clk 0:00:26]}  Kh7 {[%clk 0:00:49]} 32. Rg4 {[%clk 0:00:25]}  fxe3 {[%clk 0:00:44]} 33. Rxh4+ {[%clk 0:00:23]}  Kg8 {[%clk 0:00:44]} 34. Rg1+ {[%clk 0:00:23]}  Rg7 {[%clk 0:00:44]} 35. Rxg7+ {[%clk 0:00:22]}  Kxg7 {[%clk 0:00:45]} 36. fxe3 {[%clk 0:00:22]}  Rf5 {[%clk 0:00:42]} 37. b4 {[%clk 0:00:20]}  Rf8 {[%clk 0:00:36]} 38. Rg4+ {[%clk 0:00:20]}  Kh6 {[%clk 0:00:36]} 39. Rf4 {[%clk 0:00:20]}  Rg8 {[%clk 0:00:34]} 40. Rh4+ {[%clk 0:00:18]}  Kg7 {[%clk 0:00:32]} 41. Rg4+ {[%clk 0:00:19]}  Kf8 {[%clk 0:00:33]} 42. Nd7+ {[%clk 0:00:18]}  Kf7 {[%clk 0:00:32]} 43. Rxg8 {[%clk 0:00:19]}  Kxg8 {[%clk 0:00:32]} 44. Nc5 {[%clk 0:00:20]}  e5 {[%clk 0:00:32]} 45. dxe5 {[%clk 0:00:20]}  Kf7 {[%clk 0:00:32]} 46. Nxb7 {[%clk 0:00:21]}  Ke6 {[%clk 0:00:33]} 47. Nc5+ {[%clk 0:00:21]}  Kxe5 {[%clk 0:00:33]} 48. Nxa6 {[%clk 0:00:22]}  Kd5 {[%clk 0:00:33]} 49. Nc5 {[%clk 0:00:23]}  Kc4 {[%clk 0:00:33]} 50. a6 {[%clk 0:00:24]}  Kb5 {[%clk 0:00:34]} 51. a7 {[%clk 0:00:24]}  Kxb4 {[%clk 0:00:35]} 52. a8=Q {[%clk 0:00:25]}  Kxc5 {[%clk 0:00:36]} 53. Qd8 {[%clk 0:00:25]}  Kc4 {[%clk 0:00:36]} 54. Qd4+ {[%clk 0:00:24]}  Kb5 {[%clk 0:00:36]} 55. Qc3 {[%clk 0:00:24]}  c5 {[%clk 0:00:36]} 56. h4 {[%clk 0:00:25]}  c4 {[%clk 0:00:35]} 57. h5 {[%clk 0:00:26]} 1-0


[Site "https://www.chess.com"]

[Event "Titled Tuesday Blitz January 10 Early 2023"]
[White "Guevara Sanchez, Erick Marvin"]
[Black "Fayzullaev, Akmal"]
[WhiteFideId "6700136"]
[BlackFideId "14200554"]
[WhiteElo "2073"]
[BlackElo "2391"]
[Result "0-1"]
[Round "01"]
[TimeControl "180+2"]
[Date "2023.01.10"]
[WhiteClock "0:00:31"]
[BlackClock "0:00:11"]

1. e4 {[%clk 0:03:00]}  e5 {[%clk 0:02:56]} 2. Nf3 {[%clk 0:03:00]}  Nc6 {[%clk 0:02:55]} 3. Bc4 {[%clk 0:03:01]}  Nf6 {[%clk 0:02:54]} 4. d3 {[%clk 0:02:59]}  Bc5 {[%clk 0:02:54]} 5. Nc3 {[%clk 0:02:57]}  d6 {[%clk 0:02:53]} 6. h3 {[%clk 0:02:56]}  h6 {[%clk 0:02:53]} 7. O-O {[%clk 0:02:55]}  g5 {[%clk 0:02:53]} 8. Be3 {[%clk 0:02:53]}  Bb6 {[%clk 0:02:47]} 9. Nh2 {[%clk 0:02:48]}  Ne7 {[%clk 0:02:36]} 10. Qf3 {[%clk 0:02:39]}  Ng6 {[%clk 0:02:28]} 11. Nd5 {[%clk 0:02:28]}  Nf4 {[%clk 0:02:16]} 12. Bxb6 {[%clk 0:02:16]}  axb6 {[%clk 0:02:09]} 13. Nxf4 {[%clk 0:02:10]}  gxf4 {[%clk 0:02:06]} 14. d4 {[%clk 0:02:00]}  Qe7 {[%clk 0:01:40]} 15. Rad1 {[%clk 0:01:53]}  Bd7 {[%clk 0:01:33]} 16. dxe5 {[%clk 0:01:52]}  Qxe5 {[%clk 0:01:18]} 17. c3 {[%clk 0:01:48]}  O-O-O {[%clk 0:01:13]} 18. Bxf7 {[%clk 0:01:41]}  Rdf8 {[%clk 0:01:11]} 19. Bb3 {[%clk 0:01:38]}  Bc6 {[%clk 0:00:41]} 20. Ng4 {[%clk 0:01:29]}  Nxg4 {[%clk 0:00:30]} 21. Qxg4+ {[%clk 0:01:28]}  Kb8 {[%clk 0:00:30]} 22. f3 {[%clk 0:01:27]}  Rf6 {[%clk 0:00:19]} 23. Qh4 {[%clk 0:01:21]}  Rh7 {[%clk 0:00:18]} 24. Qf2 {[%clk 0:01:19]}  Rg7 {[%clk 0:00:18]} 25. Rd2 {[%clk 0:01:18]}  Rg3 {[%clk 0:00:18]} 26. Kh1 {[%clk 0:01:17]}  Qg5 {[%clk 0:00:18]} 27. Rfd1 {[%clk 0:01:09]}  Rg6 {[%clk 0:00:18]} 28. Bc2 {[%clk 0:00:56]}  Qh4 {[%clk 0:00:16]} 29. Kh2 {[%clk 0:00:48]}  Bd7 {[%clk 0:00:12]} 30. Rh1 {[%clk 0:00:37]}  Rxh3+ {[%clk 0:00:11]} 31. Kg1 {[%clk 0:00:31]}  Rxh1# {[%clk 0:00:11]} 0-1


[Site "https://www.chess.com"]

[Event "Titled Tuesday Blitz January 10 Early 2023"]
[White "Crevatin, Leo"]
[Black "Simonovic, Miroslav"]
[WhiteFideId "1726307"]
[BlackFideId "919152"]
[WhiteElo "2292"]
[BlackElo "2082"]
[Result "1-0"]
[Round "01"]
[TimeControl "180+2"]
[Date "2023.01.10"]
[WhiteClock "0:01:42"]
[BlackClock "0:00:01"]

1. d4 {[%clk 0:03:00]}  Nf6 {[%clk 0:02:59]} 2. c4 {[%clk 0:02:59]}  c5 {[%clk 0:02:59]} 3. d5 {[%clk 0:03:00]}  b5 {[%clk 0:03:00]} 4. Qc2 {[%clk 0:03:00]}  bxc4 {[%clk 0:03:00]} 5. e4 {[%clk 0:03:00]}  d6 {[%clk 0:03:00]} 6. Bxc4 {[%clk 0:02:59]}  g6 {[%clk 0:03:00]} 7. Nf3 {[%clk 0:03:00]}  Nbd7 {[%clk 0:02:59]} 8. O-O {[%clk 0:02:59]}  Bg7 {[%clk 0:02:59]} 9. Nc3 {[%clk 0:02:57]}  O-O {[%clk 0:02:58]} 10. Re1 {[%clk 0:02:56]}  Ng4 {[%clk 0:02:57]} 11. Bf1 {[%clk 0:02:55]}  a5 {[%clk 0:02:54]} 12. Nd2 {[%clk 0:02:50]}  Ba6 {[%clk 0:02:31]} 13. Bxa6 {[%clk 0:02:47]}  Rxa6 {[%clk 0:02:30]} 14. Rb1 {[%clk 0:02:47]}  Qa8 {[%clk 0:01:59]} 15. b3 {[%clk 0:02:41]}  Rb8 {[%clk 0:01:38]} 16. Bb2 {[%clk 0:02:40]}  Bd4 {[%clk 0:01:29]} 17. Re2 {[%clk 0:02:39]}  Nb6 {[%clk 0:01:10]} 18. Nb5 {[%clk 0:02:36]}  Bxb2 {[%clk 0:00:58]} 19. Rxb2 {[%clk 0:02:29]}  Nxd5 {[%clk 0:00:39]} 20. exd5 {[%clk 0:02:30]}  Rxb5 {[%clk 0:00:38]} 21. Rxe7 {[%clk 0:02:29]}  Rb7 {[%clk 0:00:30]} 22. Re2 {[%clk 0:02:08]}  Nf6 {[%clk 0:00:29]} 23. Qd3 {[%clk 0:02:03]}  a4 {[%clk 0:00:21]} 24. h4 {[%clk 0:01:55]}  axb3 {[%clk 0:00:20]} 25. axb3 {[%clk 0:01:55]}  Ra1+ {[%clk 0:00:19]} 26. Kh2 {[%clk 0:01:55]}  Qa6 {[%clk 0:00:13]} 27. Nc4 {[%clk 0:01:52]}  Rb4 {[%clk 0:00:08]} 28. Qf3 {[%clk 0:01:49]}  Kg7 {[%clk 0:00:07]} 29. g3 {[%clk 0:01:48]}  Rc1 {[%clk 0:00:05]} 30. Rbd2 {[%clk 0:01:43]}  Rb1 {[%clk 0:00:01]} 31. Rd3 {[%clk 0:01:42]} 1-0


[Site "https://www.chess.com"]

[Event "Titled Tuesday Blitz January 10 Early 2023"]
[White "Johnson, Ben"]
[Black "Seemann, Jakub"]
[WhiteFideId "2010917"]
[BlackFideId "21874697"]
[WhiteElo "1961"]
[BlackElo "2446"]
[Result "0-1"]
[Round "01"]
[TimeControl "180+2"]
[Date "2023.01.10"]
[WhiteClock "0:00:03"]
[BlackClock "0:00:43"]

1. Nf3 {[%clk 0:02:56]}  Nf6 {[%clk 0:02:57]} 2. c4 {[%clk 0:02:56]}  g6 {[%clk 0:02:58]} 3. b3 {[%clk 0:02:55]}  Bg7 {[%clk 0:02:58]} 4. Bb2 {[%clk 0:02:56]}  O-O {[%clk 0:02:59]} 5. g3 {[%clk 0:02:56]}  d6 {[%clk 0:02:59]} 6. d4 {[%clk 0:02:55]}  Nbd7 {[%clk 0:02:55]} 7. Bg2 {[%clk 0:02:53]}  c6 {[%clk 0:02:55]} 8. O-O {[%clk 0:02:52]}  Qc7 {[%clk 0:02:56]} 9. Nc3 {[%clk 0:02:36]}  Rd8 {[%clk 0:02:52]} 10. e4 {[%clk 0:02:25]}  e5 {[%clk 0:02:51]} 11. d5 {[%clk 0:02:22]}  a5 {[%clk 0:02:48]} 12. dxc6 {[%clk 0:02:10]}  bxc6 {[%clk 0:02:48]} 13. Qe2 {[%clk 0:02:01]}  Nc5 {[%clk 0:02:47]} 14. Rfd1 {[%clk 0:01:54]}  Bg4 {[%clk 0:02:47]} 15. h3 {[%clk 0:01:52]}  Bxf3 {[%clk 0:02:46]} 16. Qxf3 {[%clk 0:01:50]}  Ne6 {[%clk 0:02:45]} 17. Ne2 {[%clk 0:01:47]}  Nd7 {[%clk 0:02:45]} 18. h4 {[%clk 0:01:41]}  Ndc5 {[%clk 0:02:44]} 19. h5 {[%clk 0:01:36]}  Rab8 {[%clk 0:02:43]} 20. Bc3 {[%clk 0:01:30]}  Na6 {[%clk 0:02:25]} 21. Bh3 {[%clk 0:01:24]}  Ng5 {[%clk 0:02:24]} 22. Qg4 {[%clk 0:01:23]}  Nxh3+ {[%clk 0:02:24]} 23. Qxh3 {[%clk 0:01:23]}  Nc5 {[%clk 0:02:25]} 24. Qg4 {[%clk 0:01:08]}  Ra8 {[%clk 0:02:17]} 25. Kg2 {[%clk 0:01:05]}  Qd7 {[%clk 0:02:13]} 26. Qxd7 {[%clk 0:01:00]}  Rxd7 {[%clk 0:02:14]} 27. f4 {[%clk 0:00:52]}  Nxe4 {[%clk 0:02:12]} 28. Bxe5 {[%clk 0:00:39]}  Re8 {[%clk 0:02:07]} 29. Bxg7 {[%clk 0:00:38]}  Kxg7 {[%clk 0:02:08]} 30. Nd4 {[%clk 0:00:35]}  c5 {[%clk 0:02:00]} 31. Nb5 {[%clk 0:00:35]}  gxh5 {[%clk 0:01:56]} 32. Rd3 {[%clk 0:00:32]}  f5 {[%clk 0:01:54]} 33. Rh1 {[%clk 0:00:30]}  Kg6 {[%clk 0:01:52]} 34. Rhd1 {[%clk 0:00:26]}  Re6 {[%clk 0:01:52]} 35. Nc3 {[%clk 0:00:24]}  Nxc3 {[%clk 0:01:52]} 36. Rxc3 {[%clk 0:00:25]}  Re2+ {[%clk 0:01:52]} 37. Kf3 {[%clk 0:00:25]}  Rxa2 {[%clk 0:01:50]} 38. Rcd3 {[%clk 0:00:26]}  Rb2 {[%clk 0:01:43]} 39. Rxd6+ {[%clk 0:00:26]}  Rxd6 {[%clk 0:01:44]} 40. Rxd6+ {[%clk 0:00:26]}  Kf7 {[%clk 0:01:44]} 41. Rd7+ {[%clk 0:00:12]}  Ke6 {[%clk 0:01:43]} 42. Rxh7 {[%clk 0:00:12]}  Rxb3+ {[%clk 0:01:43]} 43. Kg2 {[%clk 0:00:13]}  a4 {[%clk 0:01:42]} 44. Rh6+ {[%clk 0:00:13]}  Kf7 {[%clk 0:01:41]} 45. Rxh5 {[%clk 0:00:14]}  Kg6 {[%clk 0:01:34]} 46. Rh8 {[%clk 0:00:14]}  Rb4 {[%clk 0:01:31]} 47. Rg8+ {[%clk 0:00:13]}  Kf7 {[%clk 0:01:31]} 48. Rg5 {[%clk 0:00:13]}  Kf6 {[%clk 0:01:30]} 49. g4 {[%clk 0:00:13]}  Rxc4 {[%clk 0:01:06]} 50. Rxf5+ {[%clk 0:00:13]}  Ke6 {[%clk 0:01:06]} 51. Re5+ {[%clk 0:00:13]}  Kd6 {[%clk 0:01:06]} 52. g5 {[%clk 0:00:13]}  Rxf4 {[%clk 0:01:06]} 53. Re3 {[%clk 0:00:10]}  Rg4+ {[%clk 0:01:05]} 54. Kf3 {[%clk 0:00:09]}  Rxg5 {[%clk 0:01:02]} 55. Ra3 {[%clk 0:00:09]}  Re5 {[%clk 0:00:50]} 56. Rxa4 {[%clk 0:00:09]}  Kd5 {[%clk 0:00:50]} 57. Ra8 {[%clk 0:00:08]}  Kd4 {[%clk 0:00:46]} 58. Ra7 {[%clk 0:00:03]}  c4 {[%clk 0:00:43]} 59. Rd7+ {[%clk 0:00:03]}  Kc3 {[%clk 0:00:43]} 60. Rc7 {[%clk 0:00:04]}  Re8 {[%clk 0:00:44]} 61. Kf4 {[%clk 0:00:04]}  Kd3 {[%clk 0:00:44]} 62. Rd7+ {[%clk 0:00:03]}  Kc2 {[%clk 0:00:44]} 63. Rc7 {[%clk 0:00:04]}  c3 {[%clk 0:00:45]} 64. Rc6 {[%clk 0:00:04]}  Kd2 {[%clk 0:00:45]} 65. Rd6+ {[%clk 0:00:04]}  Kc1 {[%clk 0:00:45]} 66. Rc6 {[%clk 0:00:04]}  c2 {[%clk 0:00:45]} 67. Rc7 {[%clk 0:00:05]}  Re2 {[%clk 0:00:42]} 68. Rc8 {[%clk 0:00:04]}  Kd1 {[%clk 0:00:42]} 69. Rd8+ {[%clk 0:00:03]}  Rd2 {[%clk 0:00:43]} 0-1


[Site "https://www.chess.com"]